bitfinex-derivatives/quotes_BTCF0:USTF0_20250127
["timestamp","ask_amount","ask_price","bid_price","bid_amount"]
[1737958432801,0.003,100400.0,100390.0,3.03071254]
[1737958433399,0.10226814,100400.0,100390.0,1.53071254]
[1737958434698,0.10226814,100400.0,100390.0,1.16991254]
[1737958435006,0.30158014,100400.0,100380.0,0.80918751]
[1737958435209,0.52446814,100390.0,100380.0,0.80818751]
[1737958436310,0.52446814,100390.0,100380.0,0.79818782]
[1737958437207,0.10326814,100400.0,100380.0,0.59883982]
[1737958437410,0.24556814,100400.0,100390.0,0.199332]
[1737958438307,0.24456814,100400.0,100390.0,0.199332]
[1737958438509,0.24856814,100400.0,100390.0,0.199332]
[1737958440102,0.24756814,100400.0,100390.0,0.199332]
[1737958442820,0.24756814,100400.0,100380.0,2.28284973]
[1737958442821,0.24756814,100400.0,100380.0,0.84799473]
[1737958443114,0.09926814,100390.0,100380.0,0.56029473]
[1737958444308,0.10026814,100390.0,100380.0,0.56029473]
[1737958445711,0.93790014,100390.0,100380.0,0.00014973]
[1737958445916,1.04655395,100390.0,100380.0,0.00014973]
[1737958451119,1.14582209,100390.0,100380.0,1e-08]
[1737958452615,1.04655395,100390.0,100380.0,1e-08]
[1737958452816,1.05652419,100390.0,100380.0,1e-08]
[1737958453012,1.15579233,100390.0,100380.0,1e-08]
[1737958453716,1.05652419,100390.0,100380.0,1e-08]
[1737958454228,1.15579233,100390.0,100380.0,1e-08]
[1737958454726,0.199384,100370.0,100340.0,0.73919301]
[1737958454921,0.19853628,100350.0,100340.0,0.53976601]
[1737958455421,0.30577534,100350.0,100340.0,0.17896601]
[1737958455622,0.66657534,100350.0,100330.0,0.54991156]
[1737958455832,0.09926814,100340.0,100330.0,0.54991156]
[1737958456125,0.21115076,100340.0,100330.0,0.18926129]
[1737958456625,0.21115076,100340.0,100330.0,0.17911574]
[1737958457223,0.57195076,100340.0,100330.0,0.17911574]
[1737958457627,0.57295076,100340.0,100330.0,0.18511574]
[1737958458423,0.57295076,100340.0,100330.0,0.19011574]
[1737958459134,0.57295076,100340.0,100330.0,0.18511574]
[1737958459332,0.57295076,100340.0,100330.0,0.18911574]
[1737958460450,0.57295076,100340.0,100330.0,0.01014973]
[1737958462252,0.57295076,100340.0,100330.0,0.0104555]
[1737958462941,0.58323999,100340.0,100330.0,0.0104555]
[1737958463850,0.22243999,100340.0,100330.0,0.0104555]
[1737958464448,0.58323999,100340.0,100330.0,0.0104555]
[1737958464949,0.71873999,100340.0,100330.0,0.0104555]
[1737958467746,0.34765076,100340.0,100330.0,0.0104555]
[1737958467951,0.24838262,100340.0,100330.0,0.0104555]
[1737958468255,0.001,100340.0,100330.0,0.5707065]
[1737958468551,0.001,100340.0,100330.0,0.8445065]
[1737958468744,0.001,100340.0,100330.0,0.94377464]
[1737958468944,0.00014973,100360.0,100350.0,0.199411]
[1737958469253,0.00014973,100360.0,100350.0,0.560211]
[1737958471049,0.00014973,100360.0,100350.0,0.562211]
[1737958471244,0.00014973,100360.0,100350.0,1.02627914]
[1737958471447,0.29629175,100380.0,100370.0,0.199372]
[1737958471653,0.29629175,100380.0,100370.0,1.02024014]
[1737958472047,0.2290805,100380.0,100370.0,1.15754014]
[1737958472648,0.2290805,100380.0,100370.0,1.058272]
[1737958473059,0.32934864,100380.0,100370.0,0.697472]
[1737958473355,0.29962014,100380.0,100370.0,0.697472]
[1737958473947,0.41476862,100380.0,100370.0,0.560172]
[1737958474145,0.54836862,100380.0,100370.0,0.560172]
[1737958474349,0.54836862,100380.0,100360.0,0.27334973]
[1737958474350,0.80908476,100380.0,100360.0,0.00014973]
[1737958474552,0.65944014,100370.0,100360.0,0.00014973]
[1737958474750,0.80134014,100370.0,100360.0,0.00014973]
[1737958474951,0.912189,100370.0,100360.0,0.00014973]
[1737958475458,0.912189,100370.0,100360.0,0.00114973]
[1737958475650,0.912189,100370.0,100360.0,0.00314973]
[1737958476055,0.912189,100370.0,100360.0,0.20054173]
[1737958476056,0.25274886,100370.0,100360.0,0.20054173]
[1737958476358,0.25274886,100370.0,100360.0,0.20154173]
[1737958476557,0.352017,100370.0,100360.0,0.20154173]
[1737958478360,0.912189,100370.0,100360.0,0.00214973]
[1737958480259,0.912189,100370.0,100330.0,0.69374677]
[1737958480260,0.199402,100360.0,100330.0,0.69374677]
[1737958480464,0.09926814,100340.0,100330.0,0.69374677]
[1737958480758,0.2029161,100340.0,100330.0,0.36110577]
[1737958480959,0.3432161,100340.0,100330.0,0.00030577]
[1737958481160,0.7040161,100340.0,100330.0,0.00030577]
[1737958481366,0.3432161,100340.0,100330.0,0.00030577]
[1737958481660,0.3432161,100340.0,100330.0,0.00430577]
[1737958481846,0.7050161,100340.0,100330.0,0.01130577]
[1737958482051,0.3442161,100340.0,100330.0,0.01130577]
[1737958482257,0.7050161,100340.0,100330.0,0.01130577]
[1737958482459,0.3442161,100340.0,100330.0,0.01130577]
[1737958482659,0.1413,100340.0,100330.0,0.01130577]
[1737958484054,0.001,100340.0,100330.0,0.21075677]
[1737958484256,0.10026814,100340.0,100330.0,0.20975677]
[1737958484954,0.00014973,100350.0,100340.0,0.199431]
[1737958485159,0.00014973,100350.0,100340.0,0.78749914]
[1737958485462,0.00014973,100350.0,100340.0,2.28749914]
[1737958486052,0.00014973,100350.0,100340.0,2.28949914]
[1737958487557,0.00014973,100350.0,100340.0,2.29349914]
[1737958487962,0.00014973,100350.0,100340.0,2.65429914]
[1737958488153,0.00014973,100350.0,100340.0,2.555031]
[1737958488463,0.00014973,100350.0,100340.0,2.65429914]
[1737958488669,0.00014973,100350.0,100340.0,2.555031]
[1737958489969,0.00014973,100350.0,100340.0,2.194231]
[1737958490168,0.00014973,100350.0,100340.0,0.333431]
[1737958490368,0.19945855,100350.0,100340.0,0.205431]
[1737958490664,0.48065855,100350.0,100340.0,0.205431]
[1737958491467,0.59518056,100350.0,100340.0,0.006]
[1737958491862,0.781901,100350.0,100340.0,0.006]
[1737958492264,0.59518056,100350.0,100340.0,0.006]
[1737958493263,0.59409993,100350.0,100340.0,0.006]
[1737958493464,0.39572201,100350.0,100340.0,0.205431]
[1737958498672,0.58244245,100350.0,100340.0,0.006]
[1737958498880,0.78185345,100350.0,100340.0,0.006]
[1737958499370,1.14265345,100350.0,100340.0,0.006]
[1737958506374,0.199431,100340.0,100330.0,0.00030577]
[1737958506573,0.74695144,100340.0,100330.0,0.00030577]
[1737958506779,0.85335809,100340.0,100330.0,0.00030577]
[1737958506977,0.199451,100330.0,100320.0,0.36094973]
[1737958507182,0.199451,100330.0,100290.0,0.4168561]
[1737958507183,0.86698344,100330.0,100290.0,0.4168561]
[1737958507379,0.74703144,100300.0,100290.0,0.4168561]
[1737958507679,0.8544986,100300.0,100290.0,0.4168561]
[1737958507876,1.1240986,100300.0,100290.0,0.4168561]
[1737958508076,1.1240986,100300.0,100290.0,0.17896601]
[1737958508275,0.199531,100290.0,100280.0,0.5352527]
[1737958508587,0.199551,100280.0,100270.0,0.35683514]
[1737958508783,0.74707144,100280.0,100270.0,0.35683514]
[1737958508978,0.85773297,100280.0,100270.0,0.35683514]
[1737958510181,0.85873297,100280.0,100270.0,0.35683514]
[1737958510376,0.99713297,100280.0,100270.0,0.35683514]
[1737958510571,0.99713297,100280.0,100270.0,0.36083514]
[1737958512583,0.91021028,100280.0,100270.0,0.36083514]
[1737958513181,0.91021028,100280.0,100260.0,0.99402604]
[1737958513182,1.08777909,100280.0,100260.0,9.982e-05]
[1737958513376,0.56386775,100270.0,100260.0,9.982e-05]
[1737958513581,0.92466775,100270.0,100260.0,9.982e-05]
[1737958513773,1.03672292,100270.0,100260.0,9.982e-05]
[1737958513973,1.13652067,100270.0,100260.0,9.982e-05]
[1737958514176,1.13652067,100270.0,100250.0,0.3608]
[1737958514377,0.1995955,100260.0,100250.0,0.3608]
[1737958514676,0.20840079,100260.0,100250.0,0.3608]
[1737958515481,0.10860304,100260.0,100250.0,0.3608]
[1737958515674,0.36444748,100270.0,100250.0,0.56041]
[1737958515979,0.34106882,100270.0,100250.0,0.56041]
[1737958516173,0.34106882,100270.0,100250.0,0.81771]
[1737958516382,0.00014973,100270.0,100260.0,0.66018775]
[1737958516683,0.17756881,100280.0,100270.0,0.19957]
[1737958516987,0.17756881,100280.0,100270.0,0.66016775]
[1737958517285,0.17756881,100280.0,100270.0,0.56037]
[1737958517481,0.14726312,100280.0,100270.0,0.56037]
[1737958517987,0.56120072,100280.0,100260.0,0.56053673]
[1737958518180,0.09979775,100270.0,100260.0,0.36094973]
[1737958518575,0.30068874,100270.0,100260.0,0.00014973]
[1737958518887,0.66148874,100270.0,100250.0,0.3608]
[1737958519083,0.38669689,100260.0,100250.0,0.3608]
[1737958519277,0.19959,100260.0,100250.0,0.3608]
[1737958519478,0.30607229,100260.0,100250.0,0.3608]
[1737958520188,0.30607229,100260.0,100250.0,0.3618]
[1737958520485,0.30607229,100260.0,100250.0,0.3648]
[1737958520784,0.30607229,100260.0,100250.0,0.3618]
[1737958520785,0.49317918,100260.0,100250.0,0.3618]
[1737958520990,0.49317918,100260.0,100250.0,0.3628]
[1737958521474,0.49317918,100260.0,100250.0,0.3618]
[1737958525279,0.85397918,100260.0,100250.0,0.001]
[1737958525482,0.199617,100250.0,100230.0,0.687047]
[1737958525683,0.18710689,100240.0,100230.0,0.687047]
[1737958525886,0.98842972,100250.0,100230.0,0.687047]
[1737958526080,0.11490583,100240.0,100230.0,0.687047]
[1737958526488,0.99807362,100250.0,100230.0,0.687047]
[1737958526686,0.11490583,100240.0,100230.0,0.689047]
[1737958526890,1.10715503,100250.0,100230.0,0.689047]
[1737958527193,0.10908141,100240.0,100230.0,0.691047]
[1737958527494,1.10815503,100250.0,100230.0,0.691047]
[1737958527793,0.10908141,100240.0,100230.0,0.691047]
[1737958527977,1.10707306,100250.0,100230.0,0.691047]
[1737958528290,0.10799944,100240.0,100230.0,0.4914]
[1737958528680,0.18710689,100240.0,100230.0,0.4914]
[1737958528994,0.29856619,100240.0,100230.0,0.3648]
[1737958529689,0.29956619,100240.0,100230.0,0.3638]
[1737958530093,0.1124593,100240.0,100230.0,0.3638]
[1737958530285,0.001,100240.0,100230.0,0.56345]
[1737958533184,0.001,100240.0,100230.0,0.3638]
[1737958533379,0.38773689,100240.0,100230.0,0.3638]
[1737958533791,0.49297717,100240.0,100230.0,0.3638]
[1737958534688,0.85377717,100240.0,100230.0,0.003]
[1737958534989,0.85377717,100240.0,100220.0,0.3608]
[1737958535189,0.18710689,100230.0,100220.0,0.3608]
[1737958535586,0.29799486,100230.0,100220.0,0.3608]
[1737958536594,0.29899486,100230.0,100220.0,0.3628]
[1737958537100,0.85944486,100230.0,100220.0,0.002]
[1737958537693,0.199676,100220.0,100200.0,0.4608]
[1737958537996,0.18710689,100210.0,100200.0,0.1]
[1737958538296,0.85450443,100210.0,100200.0,0.1]
[1737958538605,0.8672872,100210.0,100190.0,0.3608]
[1737958538793,0.39959966,100200.0,100190.0,0.3608]
[1737958538994,0.39959966,100200.0,100180.0,0.1329]
[1737958539189,0.09994483,100190.0,100170.0,2.32896133]
[1737958539491,0.09994483,100180.0,100170.0,0.83891295]
[1737958539691,0.11126356,100190.0,100180.0,0.19975]
[1737958539987,0.00014973,100190.0,100180.0,2.16049483]
[1737958540189,0.35524483,100220.0,100210.0,0.19969]
[1737958540496,0.10094483,100220.0,100210.0,0.56049]
[1737958540683,0.09994483,100220.0,100210.0,0.56049]
[1737958540989,0.42502966,100220.0,100210.0,2.06049]
[1737958541185,0.32508483,100220.0,100210.0,2.06049]
[1737958541383,0.42702966,100220.0,100210.0,2.06049]
[1737958541578,0.62769966,100220.0,100210.0,1.5]
[1737958541787,1.09977565,100220.0,100200.0,0.69365573]
[1737958542089,0.09994483,100210.0,100200.0,0.56094078]
[1737958542481,0.78882966,100220.0,100210.0,0.19969]
[1737958542681,0.42802966,100220.0,100210.0,0.19969]
[1737958542884,0.54190946,100220.0,100200.0,0.20014078]
[1737958543089,0.09994483,100210.0,100200.0,0.56094078]
[1737958543487,0.09994483,100210.0,100200.0,0.00043478]
[1737958543689,0.41351463,100210.0,100200.0,0.00043478]
[1737958543891,0.80621463,100210.0,100200.0,0.00043478]
[1737958544083,1.16701463,100210.0,100200.0,0.00043478]
[1737958544281,1.26695946,100210.0,100200.0,0.00043478]
[1737958544491,1.16701463,100210.0,100200.0,0.00043478]
[1737958544993,1.26695946,100210.0,100200.0,0.00043478]
[1737958545182,1.16701463,100210.0,100200.0,0.00043478]
[1737958545385,1.26695946,100210.0,100200.0,0.00043478]
[1737958545794,1.16701463,100210.0,100200.0,0.00043478]
[1737958546098,1.16901463,100210.0,100200.0,0.00043478]
[1737958546994,1.26895946,100210.0,100200.0,0.00043478]
[1737958547199,1.26995946,100210.0,100200.0,0.00043478]
[1737958547392,1.26995946,100210.0,100180.0,0.199748]
[1737958547698,0.09994483,100190.0,100180.0,0.199748]
[1737958548089,0.21022105,100190.0,100180.0,0.199748]
[1737958548496,0.21022105,100190.0,100180.0,0.200748]
[1737958548694,0.21022105,100190.0,100180.0,0.561548]
[1737958548897,0.21022105,100190.0,100180.0,0.200748]
[1737958549093,0.11027622,100190.0,100180.0,0.200748]
[1737958549604,0.10009456,100200.0,100180.0,0.561548]
[1737958549797,0.10009456,100200.0,100190.0,0.56053]
[1737958549987,0.00014973,100200.0,100190.0,0.68513]
[1737958551298,0.00014973,100200.0,100190.0,0.78507483]
[1737958551690,0.14751602,100210.0,100200.0,0.19971]
[1737958551890,0.14751602,100210.0,100200.0,0.69241]
[1737958552490,0.14751602,100210.0,100200.0,2.19241]
[1737958552691,0.09994483,100220.0,100200.0,1.9927]
[1737958552891,0.10009456,100220.0,100210.0,0.56049]
[1737958554195,0.10409456,100220.0,100210.0,0.56049]
[1737958554403,0.00414973,100220.0,100210.0,0.56049]
[1737958554802,0.00414973,100220.0,100210.0,0.68419]
[1737958554999,0.00514973,100220.0,100210.0,0.68419]
[1737958555196,0.10509456,100220.0,100210.0,0.68419]
[1737958556192,0.00514973,100220.0,100210.0,0.68419]
[1737958556394,0.00514973,100220.0,100210.0,0.78413483]
[1737958556588,0.00514973,100220.0,100210.0,0.68419]
[1737958556797,0.00514973,100220.0,100210.0,0.78413483]
[1737958557193,0.00514973,100220.0,100210.0,0.68419]
[1737958558803,0.00514973,100220.0,100210.0,0.78413483]
[1737958559194,0.32508483,100240.0,100210.0,0.88444483]
[1737958559398,0.32508483,100240.0,100230.0,1.02119483]
[1737958559700,0.32508483,100240.0,100230.0,2.52119483]
[1737958559997,0.32508483,100240.0,100230.0,2.65399483]
[1737958560502,0.33808483,100240.0,100230.0,2.65399483]
[1737958561405,0.15651602,100240.0,100230.0,2.65499483]
[1737958561901,0.13994128,100240.0,100230.0,2.55505]
[1737958562299,0.13094128,100240.0,100230.0,2.65499483]
[1737958562499,0.13094128,100240.0,100230.0,2.65699483]
[1737958562697,0.13094128,100240.0,100230.0,2.55705]
[1737958562898,0.13094128,100240.0,100230.0,1.05605]
[1737958563099,0.13094128,100240.0,100230.0,0.20765]
[1737958563100,0.43151611,100240.0,100230.0,0.20765]
[1737958563305,0.55551611,100240.0,100230.0,0.20765]
[1737958563502,0.55551611,100240.0,100230.0,0.56845]
[1737958563699,0.13194128,100240.0,100230.0,0.56845]
[1737958564294,0.56056473,100250.0,100240.0,0.19963]
[1737958564691,0.00014973,100250.0,100240.0,0.19963]
[1737958565404,1.24471738,100260.0,100240.0,0.19963]
[1737958565702,1.3488606,100260.0,100240.0,0.19963]
[1737958566001,1.3488606,100260.0,100240.0,0.20063]
[1737958566505,0.09994483,100250.0,100240.0,0.19963]
[1737958566691,0.09994483,100250.0,100240.0,0.20163]
[1737958567097,0.56753371,100250.0,100240.0,0.002]
[1737958567297,0.76714371,100250.0,100240.0,0.002]
[1737958568306,0.63831364,100250.0,100240.0,0.20163]
[1737958568613,0.17756881,100250.0,100240.0,0.20163]
[1737958568797,0.17756881,100250.0,100240.0,0.20063]
[1737958568999,0.17756881,100250.0,100240.0,1.70063]
[1737958569399,0.27851364,100250.0,100240.0,1.5]
[1737958569805,0.28051364,100250.0,100240.0,1.5]
[1737958570004,0.28051364,100250.0,100230.0,0.560445]
[1737958570204,0.38779105,100250.0,100230.0,0.560445]
[1737958570405,0.09994483,100240.0,100230.0,0.560445]
[1737958572106,0.30055583,100250.0,100230.0,0.560445]
[1737958572409,0.41282502,100250.0,100230.0,0.561445]
[1737958573497,0.41282502,100250.0,100230.0,0.562445]
[1737958574606,1.0672983,100260.0,100240.0,0.199626]
[1737958574912,1.17834362,100260.0,100240.0,0.199626]
[1737958575211,1.35591243,100260.0,100240.0,0.560426]
[1737958576121,0.09994483,100250.0,100240.0,0.3608]
[1737958576407,0.66036683,100250.0,100230.0,0.3608]
[1737958576615,0.19965,100230.0,100220.0,0.36094973]
[1737958576809,0.29959483,100230.0,100220.0,0.00014973]
[1737958577004,1.15193042,100230.0,100220.0,0.00014973]
[1737958578110,0.79113042,100230.0,100220.0,0.00014973]
[1737958578314,1.15193042,100230.0,100220.0,0.00014973]
[1737958579609,1.05222525,100230.0,100210.0,0.00149675]
[1737958579813,0.199715,100200.0,100180.0,0.23813778]
[1737958580014,0.43097483,100190.0,100180.0,0.23813778]
[1737958580306,0.23124483,100190.0,100180.0,0.23813778]
[1737958580502,0.1313,100190.0,100180.0,0.23813778]
[1737958580809,0.1313,100190.0,100180.0,0.43788678]
[1737958581005,0.66060856,100200.0,100180.0,0.43988678]
[1737958581409,0.76677811,100200.0,100180.0,0.43988678]
[1737958582101,0.76677811,100200.0,100180.0,0.201749]
[1737958582503,0.76677811,100200.0,100180.0,0.199749]
[1737958582712,0.76677811,100200.0,100180.0,0.201749]
[1737958583113,0.001,100190.0,100180.0,0.202749]
[1737958583318,0.001,100190.0,100180.0,0.200749]
[1737958583529,0.20626411,100200.0,100180.0,0.201749]
[1737958583816,0.20726411,100200.0,100180.0,0.202749]
[1737958584017,0.76777411,100200.0,100180.0,0.202749]
[1737958584205,0.001,100190.0,100180.0,0.200749]
[1737958584412,0.10094483,100190.0,100180.0,0.003]
[1737958584613,0.10094483,100190.0,100180.0,1.503]
[1737958585820,0.09994483,100190.0,100180.0,0.003]
[1737958586016,0.29967483,100190.0,100180.0,0.003]
[1737958586221,0.66047483,100190.0,100180.0,0.003]
[1737958586421,0.66047483,100190.0,100180.0,0.002]
[1737958586622,0.66147483,100190.0,100180.0,0.002]
[1737958587121,0.77160414,100190.0,100180.0,0.002]
[1737958590110,0.57187414,100190.0,100170.0,0.36244706]
[1737958590319,0.199778,100170.0,100140.0,0.560625]
[1737958590628,0.09994483,100150.0,100140.0,0.560625]
[1737958591224,0.09994483,100150.0,100140.0,0.3608]
[1737958592525,0.46074483,100150.0,100130.0,0.70029788]
[1737958592724,0.09994483,100140.0,100130.0,0.70029788]
[1737958592921,0.09994483,100140.0,100130.0,0.36094973]
[1737958593829,0.09994483,100140.0,100130.0,0.36294973]
[1737958594018,0.10094483,100140.0,100130.0,0.36394973]
[1737958594219,0.20845493,100140.0,100130.0,0.36394973]
[1737958594431,0.20845493,100140.0,100130.0,0.36194973]
[1737958594731,0.50822876,100140.0,100130.0,0.00314973]
[1737958596934,0.199851,100130.0,100110.0,0.00149793]
[1737958597124,0.09994483,100120.0,100110.0,0.00149793]
[1737958597326,0.56241383,100120.0,100110.0,0.00149793]
[1737958597524,0.67166683,100120.0,100110.0,0.00149793]
[1737958597724,0.67166683,100120.0,100100.0,0.4608]
[1737958597929,0.09994483,100110.0,100100.0,0.4608]
[1737958598332,0.66612296,100110.0,100100.0,0.1]
[1737958599431,0.86601196,100110.0,100100.0,0.1]
[1737958599823,0.86601196,100110.0,100080.0,0.57075677]
[1737958599824,0.86601196,100110.0,100080.0,0.560738]
[1737958600019,0.09994483,100090.0,100080.0,0.560738]
[1737958600619,0.09994483,100090.0,100080.0,0.3608]
[1737958601424,0.46074483,100090.0,100070.0,0.560768]
[1737958601624,0.09994483,100080.0,100070.0,0.560768]
[1737958601824,0.59164483,100090.0,100070.0,0.560768]
[1737958602823,0.59164483,100090.0,100070.0,0.57105005]
[1737958603028,0.78750956,100100.0,100070.0,0.37108205]
[1737958603228,0.09994483,100090.0,100080.0,0.199948]
[1737958603534,0.10094483,100090.0,100070.0,0.562765]
[1737958604329,0.09994483,100080.0,100070.0,0.3608]
[1737958604531,0.56068966,100080.0,100050.0,0.3608]
[1737958604725,0.09994483,100060.0,100050.0,0.3608]
[1737958605127,0.21375966,100060.0,100050.0,0.3608]
[1737958605825,0.21375966,100060.0,100040.0,0.69282064]
[1737958606828,0.21475966,100060.0,100040.0,0.69282064]
[1737958607226,0.39989866,100050.0,100040.0,0.3658]
[1737958607428,0.76069866,100050.0,100040.0,0.005]
[1737958607624,0.87018103,100050.0,100040.0,0.005]
[1737958607828,0.29997383,100040.0,100030.0,0.23813778]
[1737958608130,0.200048,100030.0,100010.0,0.35683514]
[1737958608329,0.92148966,100020.0,100000.0,0.51630766]
[1737958608537,0.92148966,100020.0,99972.0,0.3608]
[1737958608538,0.54896527,100010.0,99972.0,0.3608]
[1737958608727,0.560928,99990.0,99989.0,0.86651111]
[1737958608931,0.560928,99990.0,99989.0,0.66691111]
[1737958609126,0.67100916,99990.0,99989.0,0.66691111]
[1737958609834,0.00014973,100000.0,99989.0,0.66691111]
[1737958610032,0.00014973,100000.0,99999.0,0.3608]
[1737958610226,0.55894221,100030.0,99999.0,0.3608]
[1737958610421,0.18816527,100020.0,100000.0,0.200104]
[1737958610621,0.18816527,100010.0,99999.0,0.3608]
[1737958610827,0.18816527,100010.0,99989.0,0.66691111]
[1737958610828,0.64568527,100010.0,99989.0,0.66791111]
[1737958611030,0.3608,99990.0,99989.0,0.66791111]
[1737958611433,0.77221018,99990.0,99989.0,0.25259937]
[1737958611636,0.47221018,99990.0,99980.0,0.00014973]
[1737958611835,0.3608,99982.0,99980.0,0.00014973]
[1737958612030,0.200142,99981.0,99980.0,0.00014973]
[1737958612231,0.200142,99981.0,99968.0,0.41406558]
[1737958612232,0.200156,99974.0,99968.0,0.41406558]
[1737958612426,0.560953,99969.0,99968.0,0.41406558]
[1737958612829,0.66826036,99969.0,99968.0,0.41406558]
[1737958613132,0.96826036,99969.0,99968.0,0.41406558]
[1737958613531,0.66826036,99969.0,99968.0,0.41406558]
[1737958614033,0.96926036,99969.0,99968.0,0.41406558]
[1737958614229,0.9791025,99969.0,99968.0,0.11197295]
[1737958614431,0.200172,99961.0,99960.0,0.37077721]
[1737958614631,0.661412,99961.0,99960.0,0.10240061]
[1737958614832,1.07087503,99961.0,99960.0,0.10240061]
[1737958615032,0.20019,99952.0,99951.0,0.22969937]
[1737958615341,0.200205,99944.0,99943.0,0.59472523]
[1737958615524,0.561005,99944.0,99943.0,0.28468966]
[1737958615729,0.96708106,99944.0,99943.0,0.17888966]
[1737958615929,0.66708106,99944.0,99943.0,0.17888966]
[1737958616135,0.46687606,99944.0,99943.0,0.17888966]
[1737958616339,0.46687606,99944.0,99921.0,0.3608]
[1737958616536,0.3608,99934.0,99911.0,0.4861]
[1737958616838,0.11018003,99933.0,99912.0,1.5]
[1737958617132,0.11018003,99933.0,99921.0,0.3608]
[1737958617335,0.003,99961.0,99932.0,0.3608]
[1737958617531,0.003,99961.0,99945.0,0.3608]
[1737958617731,0.10825735,99960.0,99953.0,0.3608]
[1737958618231,0.3608,99964.0,99953.0,0.3608]
[1737958618435,0.3608,99954.0,99946.0,0.127]
[1737958618831,0.10986276,99953.0,99950.0,0.00014973]
[1737958619027,0.0486915,99960.0,99950.0,0.00014973]
[1737958619230,0.3608,99956.0,99950.0,0.00014973]
[1737958619434,0.10897005,99953.0,99950.0,0.00014973]
[1737958619633,0.10897005,99955.0,99950.0,0.00014973]
[1737958619829,0.0486915,99960.0,99951.0,0.3608]
[1737958620035,0.00014973,99970.0,99959.0,0.3608]
[1737958620230,0.200104,99993.0,99969.0,0.3608]
[1737958620535,0.11596818,99978.0,99970.0,0.1262]
[1737958620732,0.200135,99977.0,99970.0,0.1262]
[1737958621133,0.002,99960.0,99956.0,0.30669229]
[1737958621331,0.00014973,99980.0,99979.0,0.200131]
[1737958621534,0.11067794,100010.0,99979.0,1.0811]
[1737958621734,0.72576128,100020.0,99995.0,0.3608]
[1737958622034,0.11067794,100010.0,99995.0,0.3608]
[1737958622337,0.3608,100010.0,99981.0,0.3595]
[1737958622531,0.3608,100010.0,99986.0,0.200116]
[1737958622732,0.00014973,100010.0,100000.0,0.38829068]
[1737958623040,0.57101871,100040.0,100000.0,0.38829068]
[1737958623041,0.57101871,100040.0,100000.0,0.38829568]
[1737958623336,0.3608,100030.0,100000.0,0.54772068]
[1737958623537,0.21803885,100010.0,100000.0,0.3595]
[1737958623743,0.32737476,100030.0,100000.0,0.90816987]
[1737958623945,0.2869457,100050.0,100030.0,0.20002]
[1737958624238,0.2869457,100050.0,100040.0,0.200009]
[1737958624435,0.28709543,100050.0,100030.0,0.60816987]
[1737958624634,0.28709543,100050.0,100030.0,0.62011892]
[1737958625229,0.001,100040.0,100030.0,0.62011892]
[1737958625641,0.001,100040.0,100030.0,0.25931892]
[1737958625847,0.00014973,100050.0,100030.0,0.62211892]
[1737958626341,0.36094973,100050.0,100020.0,0.3608]
[1737958626639,0.36094973,100050.0,100030.0,0.001]
[1737958626640,0.3608,100040.0,100030.0,0.001]
[1737958626944,0.3608,100040.0,100030.0,0.201029]
[1737958627640,0.64963821,100080.0,100040.0,0.200009]
[1737958627946,0.28883821,100080.0,100070.0,0.199949]
[1737958628140,0.3608,100110.0,100080.0,0.199917]
[1737958628445,0.3608,100110.0,100090.0,0.199904]
[1737958628648,0.47015734,100120.0,100090.0,0.62431012]
[1737958628837,0.3608,100120.0,100110.0,0.199869]
[1737958629032,0.3608,100130.0,100110.0,0.559369]
[1737958629229,0.00014973,100130.0,100120.0,0.199849]
[1737958629446,0.37707,100150.0,100130.0,0.199829]
[1737958629633,0.3608,100140.0,100120.0,1.48967777]
[1737958629837,0.3608,100140.0,100120.0,1.84047777]
[1737958630038,0.3608,100140.0,100130.0,0.199816]
[1737958630743,0.3608,100140.0,100130.0,0.003]
[1737958631042,0.560609,100140.0,100130.0,0.003]
[1737958631351,0.73303927,100140.0,100120.0,0.00014973]
[1737958631538,0.3608,100130.0,100120.0,0.00014973]
[1737958632041,0.3608,100130.0,100120.0,0.00314973]
[1737958632042,0.46857178,100130.0,100120.0,0.00314973]
[1737958632437,0.66840078,100130.0,100120.0,0.00014973]
[1737958632749,0.199896,100100.0,100080.0,0.0014988]
[1737958633049,0.3608,100090.0,100080.0,0.0014988]
[1737958633544,0.3608,100090.0,100070.0,0.326449]
[1737958634332,0.3608,100090.0,100070.0,0.32659873]
[1737958634745,0.3608,100090.0,100070.0,0.32759873]
[1737958635750,0.3618,100090.0,100070.0,0.33059873]
[1737958636045,0.3608,100090.0,100070.0,0.32759873]
[1737958636248,0.3618,100090.0,100070.0,0.33059873]
[1737958636444,0.3618,100090.0,100070.0,0.33159873]
[1737958636649,0.560729,100080.0,100070.0,0.00214973]
[1737958636943,0.560729,100080.0,100070.0,0.00345167]
[1737958637250,0.67438992,100080.0,100070.0,0.003]
[1737958637452,0.67438992,100080.0,100070.0,0.004]
[1737958639042,0.82048105,100080.0,100060.0,0.00014973]
[1737958639242,0.3608,100070.0,100060.0,0.00014973]
[1737958640146,0.560749,100070.0,100060.0,0.00014973]
[1737958640651,0.82555912,100070.0,100060.0,0.00014973]
[1737958640838,0.82555912,100070.0,100040.0,0.0014993]
[1737958640839,0.199976,100060.0,100040.0,0.0014993]
[1737958641038,0.7216,100050.0,100040.0,0.0014993]
[1737958641352,0.3608,100060.0,100050.0,0.199977]
[1737958641543,0.001,100070.0,100050.0,0.199977]
[1737958641737,0.3618,100070.0,100060.0,0.199969]
[1737958641941,0.36194973,100070.0,100050.0,0.20013873]
[1737958642148,0.3618,100060.0,100050.0,0.00014973]
[1737958642348,0.561769,100060.0,100050.0,0.00014973]
[1737958642544,0.67227788,100060.0,100050.0,0.00014973]
[1737958642746,0.67127788,100060.0,100050.0,0.00214973]
[1737958643048,0.47130888,100060.0,100050.0,0.00214973]
[1737958643244,0.67127788,100060.0,100050.0,0.00214973]
[1737958643438,0.84658724,100060.0,100050.0,0.00214973]
[1737958643642,0.84658724,100060.0,100030.0,0.21579693]
[1737958643848,0.3608,100040.0,100030.0,0.21579693]
[1737958644445,0.3608,100040.0,100030.0,0.200027]
[1737958645050,0.3608,100040.0,100030.0,0.203027]
[1737958645650,0.3618,100040.0,100030.0,0.206027]
[1737958645845,0.922609,100040.0,100030.0,0.006]
[1737958646050,1.03400783,100040.0,100030.0,0.006]
[1737958646439,0.922609,100040.0,100030.0,0.006]
[1737958647150,0.922609,100040.0,100030.0,0.004]
[1737958647958,0.922609,100040.0,100020.0,0.20019873]
[1737958647959,0.926609,100040.0,100020.0,0.20019873]
[1737958648248,0.3608,100030.0,100020.0,0.00014973]
[1737958649360,0.560829,100030.0,100020.0,0.00014973]